[Event "SWE-ch Blitz 2019"]
[Site "Eskilstuna"]
[Date "2019.07.11"]
[Round "2.5"]
[White "Iwraeus, Lowe"]
[Black "Andersson, Tommy"]
[Result "1-0"]
[ECO "E17"]
[WhiteElo "2000"]
[BlackElo "2390"]
[Annotator "NA"]
[PlyCount "124"]
[EventDate "2019.07.06"]
[EventType "swiss"]
[EventCountry "SWE"]
[SourceTitle "playchess.com"]
[Source "ChessBase"]
[SourceQuality "1"]
[TimeControl "180+2"]

1. d4 {[%emt 0:00:00]} Nf6 {[%emt 0:00:00]} 2. Nf3 {[%emt 0:00:00]} e6 {[%emt 0:00:00]} 3. g3 {[%emt 0:00:02]} d5 {[%emt 0:00:01]} 4. Bg2 {[%emt 0:00:01]} b6 {[%emt 0:00:01]} 5. b3 {[%emt 0:00:02]} Bb7 {[%emt 0:00:01]} 6. Bb2 {[%emt 0:00:01]} Be7 {[%emt 0:00:03]} 7. Nbd2 {[%emt 0:00:01]} O-O {[%emt 0:00:03]} 8. O-O {[%emt 0:00:01]} c5 {[%emt 0:00:02]} 9. c4 {[%emt 0:00:01]} dxc4 {[%emt 0:00:07]} 10. Nxc4 {[%emt 0:00:03]} Na6 {[%emt 0:00:10]} 11. dxc5 {[%emt 0:00:31]} Nxc5 {[%emt 0:00:07]} 12. Qxd8 {[%emt 0:00:02]} Rfxd8 {[%emt 0:00:02]} 13. Rfd1 {[%emt 0:00:01]} h6 {[%emt 0:00:12]} 14. Nce5 {[%emt 0:00:14]} a5 {[%emt 0:00:13]} 15. Nc4 {[%emt 0:00:17]} b5 {[%emt 0:00:08]} 16. Ne3 {[%emt 0:00:17]} a4 {[%emt 0:00:10]} 17. bxa4 {[%emt 0:00:25]} Nxa4 {[%emt 0:00:08]} 18. Be5 {[%emt 0:00:15]} b4 {[%emt 0:00:11]} 19. Rxd8+ {[%emt 0:00:03]} Rxd8 {[%emt 0:00:01]} 20. Rd1 {[%emt 0:00:01]} Rc8 {[%emt 0:00:09]} 21. Ne1 {[%emt 0:00:17]} Ba6 {[%emt 0:00:12]} 22. Nd3 {[%emt 0:00:14]} Nc3 {[%emt 0:00:18]} 23. Bxc3 {[%emt 0:00:01]} bxc3 {[%emt 0:00:03]} 24. Nc2 {[%emt 0:00:04]} Rb8 {[%emt 0:00:13]} 25. Bc6 {[%emt 0:00:06]} Bc4 {[%emt 0:00:11]} 26. Nc1 {[%emt 0:00:03]} Rb2 {[%emt 0:00:05]} 27. Ba4 {[%emt 0:00:13]} Bxa2 {[%emt 0:00:07]} 28. Nxa2 {[%emt 0:00:01]} Rxa2 {[%emt 0:00:02]} 29. Bb3 {[%emt 0:00:00]} Rb2 {[%emt 0:00:01]} 30. Ba4 {[%emt 0:00:02]} Nd5 {[%emt 0:00:15]} 31. Kg2 {[%emt 0:00:05]} f5 {[%emt 0:00:06]} 32. Rc1 {[%emt 0:00:09]} Kf7 {[%emt 0:00:02]} 33. h4 {[%emt 0:00:04]} Bf6 {[%emt 0:00:03]} 34. e3 {[%emt 0:00:02]} g5 {[%emt 0:00:06]} 35. hxg5 {[%emt 0:00:02]} hxg5 {[%emt 0:00:01]} 36. Bc6 {[%emt 0:00:01]} Nb4 {[%emt 0:00:03]} 37. Nxb4 Rxb4 {[%emt 0:00:02]} 38. Rc2 {[%emt 0:00:03]} Ke7 {[%emt 0:00:03]} 39. Kf3 {[%emt 0:00:04]} Kd6 {[%emt 0:00:01]} 40. Be8 {[%emt 0:00:01]} Rb2 {[%emt 0:00:04]} 41. Ba4 {[%emt 0:00:01]} Kc5 {[%emt 0:00:03]} 42. Ke2 {[%emt 0:00:03]} Kb4 {[%emt 0:00:01]} 43. Rxb2+ {[%emt 0:00:05]} cxb2 {[%emt 0:00:02]} 44. Bc2 {[%emt 0:00:00]} Kc3 {[%emt 0:00:04]} 45. Bb1 {[%emt 0:00:01]} Bd8 {[%emt 0:00:02]} 46. Kd1 {[%emt 0:00:02]} Bb6 {[%emt 0:00:01]} 47. Ke2 {[%emt 0:00:02]} Bc7 {[%emt 0:00:04]} 48. Kd1 {[%emt 0:00:01]} f4 {[%emt 0:00:02]} 49. gxf4 {[%emt 0:00:01]} g4 {[%emt 0:00:02]} 50. Ke2 {[%emt 0:00:02]} Bb6 {[%emt 0:00:01]} 51. Kd1 {[%emt 0:00:02]} Bd8 {[%emt 0:00:06]} 52. Ke2 {[%emt 0:00:02]} Bh4 {[%emt 0:00:01]} 53. e4 {[%emt 0:00:01]} Kd4 {[%emt 0:00:06]} 54. f5 {[%emt 0:00:02]} exf5 {[%emt 0:00:07]} 55. exf5 {[%emt 0:00:01]} Ke5 {[%emt 0:00:02]} 56. Kf1 {[%emt 0:00:02]} Kf4 {[%emt 0:00:02]} 57. Ke2 {[%emt 0:00:01]} Bf6 {[%emt 0:00:01]} 58. Kf1 {[%emt 0:00:04]} Kf3 {[%emt 0:00:01]} 59. Bc2 {[%emt 0:00:01]} Bc3 {[%emt 0:00:02]} 60. Bb1 {[%emt 0:00:04]} Bd4 {[%emt 0:00:07]} 61. Bc2 {[%emt 0:00:02]} Bxf2 {[%emt 0:00:02]} 62. f6 {[%emt 0:00:01]} Bc5 {[%emt 0:00:04]} 1-0

[Event "SWE-ch Blitz 2019"]
[Site "Eskilstuna"]
[Date "2019.07.11"]
[Round "2.6"]
[White "Seo, Jung Min"]
[Black "Eriksson, Lennarth"]
[Result "1-0"]
[ECO "A28"]
[WhiteElo "2399"]
[BlackElo "1958"]
[Annotator "NA"]
[PlyCount "107"]
[EventDate "2019.07.06"]
[EventType "swiss"]
[EventCountry "SWE"]
[SourceTitle "playchess.com"]
[Source "ChessBase"]
[SourceQuality "1"]
[TimeControl "180+2"]

1. c4 {[%emt 0:00:00]} e5 {[%emt 0:00:01]} 2. Nc3 {[%emt 0:00:00]} Nc6 {[%emt 0:00:05]} 3. Nf3 {[%emt 0:00:01]} Nf6 {[%emt 0:00:06]} 4. e3 {[%emt 0:00:01]} d5 {[%emt 0:00:06]} 5. cxd5 {[%emt 0:00:01]} Nxd5 {[%emt 0:00:01]} 6. Bb5 {[%emt 0:00:00]} Nxc3 {[%emt 0:00:22]} 7. bxc3 {[%emt 0:00:01]} Bd6 {[%emt 0:00:07]} 8. d4 {[%emt 0:00:02]} e4 {[%emt 0:00:05]} 9. Nd2 {[%emt 0:00:01]} Qe7 {[%emt 0:00:08]} 10. Nc4 {[%emt 0:00:17]} O-O {[%emt 0:00:09]} 11. Nxd6 Qxd6 {[%emt 0:00:05]} 12. O-O {[%emt 0:00:03]} Ne7 {[%emt 0:00:05]} 13. a4 {[%emt 0:00:01]} c6 {[%emt 0:00:09]} 14. Ba3 {[%emt 0:00:00]} Qf6 {[%emt 0:00:05]} 15. Be2 {[%emt 0:00:04]} Re8 {[%emt 0:00:04]} 16. Qc2 {[%emt 0:00:00]} Ng6 {[%emt 0:00:06]} 17. f3 {[%emt 0:00:06]} exf3 {[%emt 0:00:19]} 18. Rxf3 {[%emt 0:00:02]} Qg5 {[%emt 0:00:07]} 19. e4 {[%emt 0:00:01]} Nf4 {[%emt 0:00:07]} 20. Bc4 {[%emt 0:00:17]} Be6 {[%emt 0:00:12]} 21. Bxe6 {[%emt 0:00:02]} Nxe6 {[%emt 0:00:04]} 22. Raf1 {[%emt 0:00:02]} f6 {[%emt 0:00:06]} 23. Rf5 {[%emt 0:00:02]} Qg6 {[%emt 0:00:05]} 24. Qb3 {[%emt 0:00:03]} Kh8 {[%emt 0:00:03]} 25. Qxb7 {[%emt 0:00:02]} Qg4 {[%emt 0:00:10]} 26. Qxc6 {[%emt 0:00:05]} Rac8 {[%emt 0:00:12]} 27. h3 {[%emt 0:00:25]} Qe2 {[%emt 0:00:13]} 28. Qd5 {[%emt 0:00:10]} Rxc3 {[%emt 0:00:11]} 29. Bd6 {[%emt 0:00:08]} Qe3+ {[%emt 0:00:04]} 30. Kh1 {[%emt 0:00:04]} Rc1 {[%emt 0:00:04]} 31. Rxc1 {[%emt 0:00:09]} Qxc1+ 32. Kh2 Qc8 {[%emt 0:00:05]} 33. Bc5 {[%emt 0:00:07]} Ng5 {[%emt 0:00:04]} 34. Rf4 {[%emt 0:00:06]} Qc7 {[%emt 0:00:04]} 35. Bd6 {[%emt 0:00:01]} Qd7 {[%emt 0:00:09]} 36. e5 {[%emt 0:00:03]} fxe5 {[%emt 0:00:03]} 37. dxe5 {[%emt 0:00:01]} Ne6 {[%emt 0:00:03]} 38. Rg4 {[%emt 0:00:01]} h6 {[%emt 0:00:02]} 39. Qb5 {[%emt 0:00:02]} Qf7 {[%emt 0:00:02]} 40. Qd3 {[%emt 0:00:03]} Rd8 {[%emt 0:00:01]} 41. Qe4 {[%emt 0:00:02]} Rd7 {[%emt 0:00:01]} 42. Rg3 {[%emt 0:00:02]} Rd8 {[%emt 0:00:01]} 43. Rf3 {[%emt 0:00:01]} Qg8 {[%emt 0:00:01]} 44. Qb7 {[%emt 0:00:05]} Ng5 {[%emt 0:00:01]} 45. Rg3 {[%emt 0:00:01]} Ne6 {[%emt 0:00:02]} 46. Qxa7 Re8 {[%emt 0:00:04]} 47. Qe3 {[%emt 0:00:04]} Ng5 {[%emt 0:00:02]} 48. Qf4 {[%emt 0:00:04]} Qe6 {[%emt 0:00:01]} 49. a5 {[%emt 0:00:07]} Nf7 {[%emt 0:00:03]} 50. a6 {[%emt 0:00:05]} Ng5 {[%emt 0:00:05]} 51. a7 {[%emt 0:00:05]} Qd5 {[%emt 0:00:01]} 52. Qa4 {[%emt 0:00:10]} Ra8 {[%emt 0:00:01]} 53. Rb3 {[%emt 0:00:04]} Qf7 {[%emt 0:00:05]} 54. Rb8+ {[%emt 0:00:02]} 1-0

[Event "SWE-ch Blitz 2019"]
[Site "Eskilstuna"]
[Date "2019.07.11"]
[Round "2.7"]
[White "Moborn, Anders"]
[Black "Lissang, Christopher"]
[Result "0-1"]
[ECO "D02"]
[WhiteElo "2034"]
[BlackElo "2333"]
[Annotator "NA"]
[PlyCount "39"]
[EventDate "2019.07.06"]
[EventType "swiss"]
[EventCountry "SWE"]
[SourceTitle "playchess.com"]
[Source "ChessBase"]
[SourceQuality "1"]
[TimeControl "180+2"]

1. d4 {[%emt 0:00:00]} Nf6 {[%emt 0:00:00]} 2. Nf3 {[%emt 0:00:00]} e6 {[%emt 0:00:01]} 3. g3 {[%emt 0:00:01]} d5 {[%emt 0:00:01]} 4. Bg2 {[%emt 0:00:01]} c5 {[%emt 0:00:02]} 5. O-O {[%emt 0:00:07]} Nc6 {[%emt 0:00:09]} 6. b3 {[%emt 0:00:10]} Be7 {[%emt 0:00:09]} 7. Bb2 {[%emt 0:00:01]} O-O {[%emt 0:00:02]} 8. Nbd2 {[%emt 0:00:05]} b5 {[%emt 0:00:03]} 9. c4 {[%emt 0:00:12]} bxc4 {[%emt 0:00:06]} 10. bxc4 {[%emt 0:00:01]} Rb8 {[%emt 0:00:07]} 11. cxd5 exd5 {[%emt 0:00:10]} 12. Bc3 {[%emt 0:00:40]} Bf5 {[%emt 0:00:46]} 13. Ne5 {[%emt 0:00:10]} Qc7 {[%emt 0:00:30]} 14. Nxc6 Qxc6 {[%emt 0:00:01]} 15. dxc5 {[%emt 0:00:57]} Qxc5 {[%emt 0:00:04]} 16. Be5 {[%emt 0:00:09]} Rb4 {[%emt 0:00:33]} 17. Nb3 {[%emt 0:00:02]} Qc8 {[%emt 0:00:16]} 18. Rc1 {[%emt 0:00:20]} Qe6 {[%emt 0:00:02]} 19. Bd4 {[%emt 0:00:25]} Ne4 {[%emt 0:00:20]} 20. f3 0-1

[Event "SWE-ch Blitz 2019"]
[Site "Eskilstuna"]
[Date "2019.07.11"]
[Round "2.8"]
[White "Rydstrom, Tom"]
[Black "Luna, Gustavo"]
[Result "1-0"]
[ECO "B25"]
[WhiteElo "2345"]
[BlackElo "2041"]
[Annotator "NA"]
[PlyCount "65"]
[EventDate "2019.07.06"]
[EventType "swiss"]
[EventCountry "SWE"]
[SourceTitle "playchess.com"]
[Source "ChessBase"]
[SourceQuality "1"]
[TimeControl "180+2"]

1. Nf3 {[%emt 0:00:00]} Nf6 {[%emt 0:00:02]} 2. g3 {[%emt 0:00:00]} g6 {[%emt 0:00:01]} 3. Bg2 {[%emt 0:00:01]} Bg7 {[%emt 0:00:01]} 4. O-O {[%emt 0:00:01]} O-O {[%emt 0:00:01]} 5. d3 {[%emt 0:00:01]} d6 {[%emt 0:00:05]} 6. e4 {[%emt 0:00:16]} c5 {[%emt 0:00:27]} 7. Nc3 {[%emt 0:00:02]} Nc6 {[%emt 0:00:06]} 8. h3 {[%emt 0:00:42]} a6 {[%emt 0:00:03]} 9. Be3 {[%emt 0:00:04]} Bd7 {[%emt 0:00:18]} 10. Ne2 {[%emt 0:00:10]} Qc8 {[%emt 0:00:06]} 11. Kh2 {[%emt 0:00:01]} Qc7 {[%emt 0:00:01]} 12. c3 {[%emt 0:00:02]} Rab8 {[%emt 0:00:09]} 13. Ne1 {[%emt 0:00:04]} b5 {[%emt 0:00:18]} 14. f4 {[%emt 0:00:01]} b4 {[%emt 0:00:09]} 15. Nf3 {[%emt 0:00:03]} Nh5 {[%emt 0:00:09]} 16. g4 {[%emt 0:00:11]} Nf6 {[%emt 0:00:03]} 17. Qe1 {[%emt 0:00:17]} bxc3 18. bxc3 {[%emt 0:00:06]} Rb2 {[%emt 0:00:12]} 19. Kh1 {[%emt 0:00:15]} h5 {[%emt 0:00:07]} 20. Bc1 {[%emt 0:00:11]} Rxe2 {[%emt 0:00:26]} 21. Qxe2 {[%emt 0:00:02]} hxg4 {[%emt 0:00:01]} 22. hxg4 {[%emt 0:00:04]} Bxg4 {[%emt 0:00:02]} 23. Bd2 {[%emt 0:00:06]} Nh5 {[%emt 0:00:12]} 24. Qf2 {[%emt 0:00:03]} Bf6 {[%emt 0:00:03]} 25. Nh2 {[%emt 0:00:34]} Bc8 {[%emt 0:00:09]} 26. Bf3 {[%emt 0:00:01]} Ng7 {[%emt 0:00:08]} 27. Rg1 {[%emt 0:00:02]} Qa5 {[%emt 0:00:18]} 28. f5 {[%emt 0:00:03]} Bxc3 {[%emt 0:00:05]} 29. Bxc3 {[%emt 0:00:04]} Qxc3 {[%emt 0:00:01]} 30. Ng4 {[%emt 0:00:08]} g5 {[%emt 0:00:12]} 31. Qh2 {[%emt 0:00:03]} Qf6 {[%emt 0:00:04]} 32. Nxf6+ {[%emt 0:00:02]} exf6 {[%emt 0:00:01]} 33. Rg3 {[%emt 0:00:05]} 1-0

[Event "SWE-ch Blitz 2019"]
[Site "Eskilstuna"]
[Date "2019.07.11"]
[Round "2.9"]
[White "Carlsson, Ludvig"]
[Black "Malmstig, Erik"]
[Result "1-0"]
[ECO "A53"]
[WhiteElo "2218"]
[BlackElo "2357"]
[Annotator "NA"]
[PlyCount "99"]
[EventDate "2019.07.06"]
[EventType "swiss"]
[EventCountry "SWE"]
[SourceTitle "playchess.com"]
[Source "ChessBase"]
[SourceQuality "1"]
[TimeControl "180+2"]

1. d4 {[%emt 0:00:00]} Nf6 {[%emt 0:00:00]} 2. Nf3 {[%emt 0:00:01]} d6 {[%emt 0:00:00]} 3. c4 {[%emt 0:00:07]} Bg4 {[%emt 0:00:01]} 4. e3 {[%emt 0:00:08]} Nbd7 {[%emt 0:00:01]} 5. h3 {[%emt 0:00:10]} Bh5 {[%emt 0:00:01]} 6. Be2 {[%emt 0:00:32]} e5 {[%emt 0:00:01]} 7. Nc3 {[%emt 0:00:13]} c6 {[%emt 0:00:01]} 8. Qc2 {[%emt 0:00:05]} Qc7 {[%emt 0:00:04]} 9. b3 {[%emt 0:00:02]} Be7 {[%emt 0:00:15]} 10. Bb2 {[%emt 0:00:02]} Bg6 {[%emt 0:00:18]} 11. Qd1 {[%emt 0:00:06]} e4 {[%emt 0:00:11]} 12. Nh4 {[%emt 0:00:06]} d5 {[%emt 0:00:01]} 13. cxd5 {[%emt 0:00:07]} cxd5 {[%emt 0:00:02]} 14. Nb5 {[%emt 0:00:22]} Qa5+ {[%emt 0:00:14]} 15. Qd2 {[%emt 0:00:03]} Qb6 {[%emt 0:00:17]} 16. Rc1 {[%emt 0:00:06]} O-O {[%emt 0:00:03]} 17. Ba3 {[%emt 0:00:04]} Bxa3 {[%emt 0:00:09]} 18. Nxa3 {[%emt 0:00:02]} Rac8 {[%emt 0:00:10]} 19. O-O {[%emt 0:00:02]} a6 {[%emt 0:00:05]} 20. Nxg6 {[%emt 0:00:05]} hxg6 {[%emt 0:00:02]} 21. Nb1 {[%emt 0:00:06]} Qd6 {[%emt 0:00:10]} 22. Rc3 {[%emt 0:00:08]} Rxc3 {[%emt 0:00:05]} 23. Nxc3 {[%emt 0:00:03]} Rc8 {[%emt 0:00:10]} 24. Rc1 {[%emt 0:00:18]} Qb4 {[%emt 0:00:18]} 25. Nb1 {[%emt 0:00:08]} Rxc1+ 26. Qxc1 {[%emt 0:00:01]} Kh7 {[%emt 0:00:27]} 27. Qc3 {[%emt 0:00:03]} Qb6 {[%emt 0:00:03]} 28. Qc8 {[%emt 0:00:07]} Qa5 {[%emt 0:00:13]} 29. Nc3 {[%emt 0:00:02]} b5 {[%emt 0:00:05]} 30. Nxd5 {[%emt 0:00:04]} Qe1+ {[%emt 0:00:12]} 31. Bf1 {[%emt 0:00:02]} Nxd5 {[%emt 0:00:03]} 32. Qxd7 {[%emt 0:00:02]} Nc3 {[%emt 0:00:01]} 33. Qg4 {[%emt 0:00:05]} f5 {[%emt 0:00:10]} 34. Qh4+ {[%emt 0:00:01]} Kg8 {[%emt 0:00:02]} 35. Qd8+ {[%emt 0:00:04]} Kf7 {[%emt 0:00:05]} 36. Qd7+ {[%emt 0:00:10]} Kf6 {[%emt 0:00:02]} 37. Qc6+ {[%emt 0:00:02]} Kg5 {[%emt 0:00:02]} 38. g3 {[%emt 0:00:01]} Nd1 {[%emt 0:00:04]} 39. Qc2 {[%emt 0:00:12]} Nc3 {[%emt 0:00:01]} 40. Kg2 {[%emt 0:00:02]} a5 {[%emt 0:00:02]} 41. h4+ {[%emt 0:00:04]} Kh6 {[%emt 0:00:00]} 42. a3 {[%emt 0:00:03]} b4 {[%emt 0:00:01]} 43. axb4 {[%emt 0:00:02]} axb4 {[%emt 0:00:01]} 44. Bc4 {[%emt 0:00:02]} Qa1 {[%emt 0:00:03]} 45. Qd2 {[%emt 0:00:07]} Qa7 {[%emt 0:00:11]} 46. d5 {[%emt 0:00:01]} Qd7 {[%emt 0:00:01]} 47. d6 {[%emt 0:00:02]} Kh7 {[%emt 0:00:02]} 48. Be6 {[%emt 0:00:02]} Qxe6 {[%emt 0:00:03]} 49. d7 {[%emt 0:00:01]} Qxb3 50. d8=Q 1-0

[Event "SWE-ch Blitz 2019"]
[Site "Eskilstuna"]
[Date "2019.07.11"]
[Round "2.10"]
[White "Kucuksari, Kaan"]
[Black "Joensson, Mikael"]
[Result "1-0"]
[ECO "A52"]
[WhiteElo "2310"]
[BlackElo "2055"]
[Annotator "NA"]
[PlyCount "87"]
[EventDate "2019.07.06"]
[EventType "swiss"]
[EventCountry "SWE"]
[SourceTitle "playchess.com"]
[Source "ChessBase"]
[SourceQuality "1"]
[TimeControl "180+2"]

1. d4 {[%emt 0:00:00]} Nf6 {[%emt 0:00:00]} 2. c4 {[%emt 0:00:00]} e5 3. dxe5 {[%emt 0:00:02]} Ng4 {[%emt 0:00:00]} 4. Nf3 {[%emt 0:00:04]} Bc5 {[%emt 0:00:01]} 5. e3 {[%emt 0:00:07]} Nc6 {[%emt 0:00:02]} 6. Nc3 {[%emt 0:00:17]} O-O {[%emt 0:00:04]} 7. Be2 {[%emt 0:00:11]} Re8 {[%emt 0:00:02]} 8. O-O {[%emt 0:00:27]} Ngxe5 9. Nxe5 {[%emt 0:00:02]} Nxe5 {[%emt 0:00:06]} 10. b3 {[%emt 0:00:03]} a5 {[%emt 0:00:02]} 11. Bb2 {[%emt 0:00:01]} Ra6 {[%emt 0:00:05]} 12. Ne4 {[%emt 0:00:10]} Ba7 {[%emt 0:00:15]} 13. c5 {[%emt 0:00:44]} Rh6 {[%emt 0:00:14]} 14. f4 {[%emt 0:00:13]} Nc6 {[%emt 0:00:19]} 15. Qd5 {[%emt 0:00:25]} Qe7 {[%emt 0:00:45]} 16. Bc4 {[%emt 0:00:17]} Nb4 {[%emt 0:00:14]} 17. Qg5 {[%emt 0:00:02]} Rg6 {[%emt 0:00:14]} 18. Qxe7 Rxe7 {[%emt 0:00:01]} 19. Ng5 {[%emt 0:00:18]} Nc2 {[%emt 0:00:09]} 20. Rac1 {[%emt 0:00:06]} Nxe3 {[%emt 0:00:04]} 21. Rfe1 {[%emt 0:00:01]} Bxc5 {[%emt 0:00:04]} 22. Bxf7+ {[%emt 0:00:02]} Rxf7 {[%emt 0:00:02]} 23. Rxc5 {[%emt 0:00:02]} d6 {[%emt 0:00:13]} 24. Rcc1 {[%emt 0:00:09]} Re7 {[%emt 0:00:13]} 25. Bd4 {[%emt 0:00:02]} Nf5 {[%emt 0:00:03]} 26. Rxe7 {[%emt 0:00:01]} Nxe7 {[%emt 0:00:01]} 27. Rxc7 {[%emt 0:00:01]} Kf8 {[%emt 0:00:13]} 28. h4 {[%emt 0:00:01]} h6 {[%emt 0:00:01]} 29. h5 {[%emt 0:00:00]} hxg5 {[%emt 0:00:15]} 30. hxg6 {[%emt 0:00:02]} gxf4 {[%emt 0:00:01]} 31. Bxg7+ {[%emt 0:00:03]} Kxg7 {[%emt 0:00:04]} 32. Rxe7+ {[%emt 0:00:01]} Kxg6 {[%emt 0:00:00]} 33. Rc7 {[%emt 0:00:02]} Be6 {[%emt 0:00:04]} 34. Rxb7 {[%emt 0:00:01]} a4 {[%emt 0:00:00]} 35. bxa4 {[%emt 0:00:02]} Bxa2 {[%emt 0:00:02]} 36. Rb6 {[%emt 0:00:01]} Kf5 {[%emt 0:00:02]} 37. Rxd6 {[%emt 0:00:02]} Ke5 {[%emt 0:00:01]} 38. Rd2 {[%emt 0:00:01]} Bc4 {[%emt 0:00:01]} 39. a5 {[%emt 0:00:01]} Ke4 {[%emt 0:00:01]} 40. Rc2 {[%emt 0:00:01]} Bd3 {[%emt 0:00:02]} 41. Rb2 {[%emt 0:00:01]} Ke3 {[%emt 0:00:01]} 42. Rb3 {[%emt 0:00:01]} Kd4 {[%emt 0:00:02]} 43. Rxd3+ {[%emt 0:00:02]} Kxd3 {[%emt 0:00:02]} 44. a6 {[%emt 0:00:01]} 1-0

[Event "SWE-ch Blitz 2019"]
[Site "Eskilstuna"]
[Date "2019.07.11"]
[Round "2.12"]
[White "Gruvaeus, Curt"]
[Black "Bjornvall, Tord"]
[Result "1-0"]
[ECO "A53"]
[WhiteElo "2228"]
[BlackElo "1997"]
[Annotator "NA"]
[PlyCount "71"]
[EventDate "2019.07.06"]
[EventType "swiss"]
[EventCountry "SWE"]
[SourceTitle "playchess.com"]
[Source "ChessBase"]
[SourceQuality "1"]
[TimeControl "180+2"]

1. Nf3 {[%emt 0:00:00]} d6 {[%emt 0:00:01]} 2. d4 {[%emt 0:00:10]} Nf6 {[%emt 0:00:02]} 3. g3 {[%emt 0:00:01]} Nbd7 {[%emt 0:00:02]} 4. Bg2 {[%emt 0:00:00]} e5 {[%emt 0:00:04]} 5. c4 {[%emt 0:00:02]} c6 {[%emt 0:00:09]} 6. dxe5 {[%emt 0:00:05]} dxe5 {[%emt 0:00:02]} 7. O-O {[%emt 0:00:02]} Qc7 {[%emt 0:00:04]} 8. Nc3 {[%emt 0:00:05]} Be7 {[%emt 0:00:07]} 9. h3 {[%emt 0:00:03]} O-O {[%emt 0:00:05]} 10. b3 {[%emt 0:00:13]} Nc5 {[%emt 0:00:20]} 11. Qc2 {[%emt 0:00:01]} a5 {[%emt 0:00:17]} 12. Bb2 {[%emt 0:00:04]} Ne6 {[%emt 0:00:09]} 13. Rad1 {[%emt 0:00:09]} Bc5 {[%emt 0:00:05]} 14. e3 {[%emt 0:00:03]} h6 {[%emt 0:00:19]} 15. Na4 {[%emt 0:00:01]} Nd7 {[%emt 0:00:21]} 16. Nxc5 {[%emt 0:00:15]} Nexc5 {[%emt 0:00:05]} 17. Nh4 {[%emt 0:00:16]} Nf6 {[%emt 0:00:13]} 18. Nf5 {[%emt 0:00:06]} Bxf5 {[%emt 0:00:09]} 19. Qxf5 {[%emt 0:00:01]} Rfe8 {[%emt 0:00:06]} 20. Rd2 {[%emt 0:00:10]} Na6 {[%emt 0:00:25]} 21. f4 {[%emt 0:00:19]} exf4 {[%emt 0:00:17]} 22. exf4 {[%emt 0:00:13]} Re6 {[%emt 0:00:08]} 23. Kh2 {[%emt 0:00:23]} g6 {[%emt 0:00:02]} 24. Qc2 {[%emt 0:00:07]} Rae8 {[%emt 0:00:01]} 25. Rfd1 {[%emt 0:00:03]} Nb4 {[%emt 0:00:03]} 26. Qb1 {[%emt 0:00:01]} c5 {[%emt 0:00:01]} 27. a3 {[%emt 0:00:18]} Nc6 {[%emt 0:00:02]} 28. Qa1 {[%emt 0:00:13]} Nh5 {[%emt 0:00:03]} 29. Bf3 {[%emt 0:00:13]} Nxf4 {[%emt 0:00:07]} 30. Rd7 {[%emt 0:00:09]} Re2+ {[%emt 0:00:07]} 31. Bxe2 {[%emt 0:00:07]} Rxe2+ {[%emt 0:00:01]} 32. Kh1 {[%emt 0:00:01]} Qc8 {[%emt 0:00:01]} 33. gxf4 {[%emt 0:00:05]} Qe8 {[%emt 0:00:01]} 34. Be5 {[%emt 0:00:02]} Qe6 {[%emt 0:00:02]} 35. Qc3 {[%emt 0:00:02]} Qf5 {[%emt 0:00:02]} 36. Rd8+ 1-0

[Event "SWE-ch Blitz 2019"]
[Site "Eskilstuna"]
[Date "2019.07.11"]
[Round "2.13"]
[White "Goransson, Michael"]
[Black "Kockum, Anton Frisk"]
[Result "0-1"]
[ECO "A06"]
[WhiteElo "1996"]
[BlackElo "2353"]
[Annotator "NA"]
[PlyCount "44"]
[EventDate "2019.07.06"]
[EventType "swiss"]
[EventCountry "SWE"]
[SourceTitle "playchess.com"]
[Source "ChessBase"]
[SourceQuality "1"]
[TimeControl "180+2"]

1. Nf3 {[%emt 0:00:01]} c5 {[%emt 0:00:00]} 2. e3 {[%emt 0:00:03]} Nc6 {[%emt 0:00:05]} 3. Be2 {[%emt 0:00:12]} d5 {[%emt 0:00:04]} 4. O-O {[%emt 0:00:02]} Nf6 {[%emt 0:00:03]} 5. b3 {[%emt 0:00:04]} Bg4 {[%emt 0:00:04]} 6. Bb2 {[%emt 0:00:02]} e6 {[%emt 0:00:01]} 7. d3 {[%emt 0:00:01]} Be7 {[%emt 0:00:08]} 8. Nbd2 {[%emt 0:00:01]} O-O {[%emt 0:00:02]} 9. a3 {[%emt 0:00:01]} b5 {[%emt 0:00:24]} 10. Ne5 Nxe5 {[%emt 0:00:02]} 11. Bxe5 {[%emt 0:00:28]} Bxe2 12. Qxe2 {[%emt 0:00:01]} Nd7 {[%emt 0:00:22]} 13. Bb2 {[%emt 0:00:10]} Bf6 {[%emt 0:00:01]} 14. Bxf6 {[%emt 0:00:01]} Qxf6 {[%emt 0:00:02]} 15. a4 {[%emt 0:00:08]} b4 {[%emt 0:00:03]} 16. e4 {[%emt 0:00:25]} Qc3 {[%emt 0:00:38]} 17. Rac1 {[%emt 0:00:21]} Rae8 {[%emt 0:00:15]} 18. f4 {[%emt 0:00:25]} f5 {[%emt 0:00:37]} 19. e5 {[%emt 0:00:17]} g5 {[%emt 0:00:13]} 20. g3 {[%emt 0:00:48]} Kh8 {[%emt 0:00:01]} 21. Kh1 {[%emt 0:00:01]} Rg8 {[%emt 0:00:01]} 22. Nf3 {[%emt 0:00:05]} gxf4 {[%emt 0:00:04]} 0-1

[Event "SWE-ch Blitz 2019"]
[Site "Eskilstuna"]
[Date "2019.07.11"]
[Round "2.14"]
[White "Bergstrom, Peter"]
[Black "Horn, Emilia"]
[Result "0-1"]
[ECO "C45"]
[WhiteElo "2306"]
[BlackElo "1984"]
[Annotator "NA"]
[PlyCount "60"]
[EventDate "2019.07.06"]
[EventType "swiss"]
[EventCountry "SWE"]
[SourceTitle "playchess.com"]
[Source "ChessBase"]
[SourceQuality "1"]
[TimeControl "180+2"]

1. e4 {[%emt 0:00:00]} e5 {[%emt 0:00:00]} 2. Nf3 {[%emt 0:00:02]} Nc6 {[%emt 0:00:02]} 3. d4 {[%emt 0:00:02]} exd4 {[%emt 0:00:02]} 4. Nxd4 {[%emt 0:00:02]} Bc5 {[%emt 0:00:02]} 5. Be3 {[%emt 0:00:02]} Qf6 {[%emt 0:00:02]} 6. c3 {[%emt 0:00:02]} Nge7 {[%emt 0:00:02]} 7. g3 {[%emt 0:00:02]} d6 {[%emt 0:00:25]} 8. Bg2 {[%emt 0:00:00]} Bd7 {[%emt 0:00:04]} 9. O-O {[%emt 0:00:18]} Bb6 {[%emt 0:00:07]} 10. Na3 {[%emt 0:00:06]} O-O {[%emt 0:00:02]} 11. Nc4 {[%emt 0:00:09]} Ne5 {[%emt 0:00:11]} 12. Nxb6 {[%emt 0:00:18]} axb6 {[%emt 0:00:05]} 13. a3 {[%emt 0:00:14]} N7c6 {[%emt 0:00:09]} 14. Nxc6 {[%emt 0:00:10]} bxc6 {[%emt 0:00:02]} 15. Bd4 {[%emt 0:00:01]} c5 {[%emt 0:00:12]} 16. Bxe5 {[%emt 0:00:07]} Qxe5 {[%emt 0:00:02]} 17. f4 {[%emt 0:00:02]} Qe7 {[%emt 0:00:12]} 18. e5 {[%emt 0:00:08]} Rad8 {[%emt 0:00:04]} 19. exd6 {[%emt 0:00:02]} cxd6 {[%emt 0:00:02]} 20. Bd5 {[%emt 0:00:08]} Be6 {[%emt 0:00:02]} 21. Re1 {[%emt 0:00:04]} Qf6 {[%emt 0:00:09]} 22. Qd2 {[%emt 0:00:05]} Bxd5 {[%emt 0:00:13]} 23. Qxd5 {[%emt 0:00:01]} Rfe8 {[%emt 0:00:07]} 24. Kg2 {[%emt 0:00:10]} Qg6 {[%emt 0:00:11]} 25. f5 {[%emt 0:00:31]} Qg5 {[%emt 0:00:11]} 26. Rxe8+ {[%emt 0:00:17]} Rxe8 {[%emt 0:00:01]} 27. Re1 {[%emt 0:00:04]} Rd8 {[%emt 0:00:17]} 28. Qxd6 {[%emt 0:00:11]} g6 {[%emt 0:00:15]} 29. f6 {[%emt 0:00:07]} h5 {[%emt 0:00:01]} 30. Qc6 {[%emt 0:00:07]} Qd2+ {[%emt 0:00:04]} 0-1